bitfinex/quotes_BTCUSD_20251219
["timestamp","ask_amount","ask_price","bid_price","bid_amount"]
[1766146925237,0.3184,88150.0,88136.0,0.07057596]
[1766146925523,0.3184,88150.0,88137.0,0.01134597]
[1766146925715,0.3184,88150.0,88136.0,0.0025]
[1766146926128,0.34104107,88149.0,88136.0,0.0025]
[1766146926354,0.31268,88149.0,88135.0,0.0025]
[1766146926619,0.00572,88150.0,88134.0,0.00572]
[1766146926620,0.31268,88145.0,88134.0,0.00572]
[1766146927625,0.03408267,88144.0,88131.0,0.0025]
[1766146927974,0.31268,88143.0,88131.0,0.0025]
[1766146928088,0.02836332,88142.0,88131.0,0.0025]
[1766146928727,0.02836332,88142.0,88131.0,0.01384674]
[1766146929094,0.02836332,88142.0,88132.0,0.01134661]
[1766146929298,0.02836332,88142.0,88131.0,0.0025]
[1766146929697,0.02836332,88142.0,88131.0,0.01384674]
[1766146929896,0.02836332,88142.0,88131.0,0.0025]
[1766146930323,0.02836332,88142.0,88131.0,0.07058016]
[1766146930687,0.02836332,88142.0,88131.0,0.0025]
[1766146931291,0.34104332,88142.0,88128.0,0.01159486]
[1766146931421,0.34104332,88142.0,88128.0,0.00035696]
[1766146931422,0.31268,88141.0,88128.0,0.00035696]
[1766146933280,0.31268,88139.0,88128.0,0.00035696]
[1766146933845,0.00572,88144.0,88129.0,0.70007]
[1766146934081,0.00572,88144.0,88139.0,0.000247]
[1766146934274,0.31268,88146.0,88131.0,0.71141674]
[1766146934475,0.00572,88143.0,88134.0,0.0680776]
[1766146934653,0.00572,88143.0,88133.0,0.05673119]
[1766146934854,0.00572,88143.0,88133.0,0.01134648]
[1766146935041,0.00572,88143.0,88132.0,0.05673183]
[1766146935256,0.00572,88143.0,88131.0,0.70007]
[1766146937737,0.00572,88143.0,88120.0,0.22696269]
[1766146937738,0.17588,88130.0,88122.0,0.0113479]
[1766146938014,0.17598905,88130.0,88123.0,0.01134777]
[1766146938239,0.17598905,88130.0,88122.0,0.06808681]
[1766146938457,0.0025,88142.0,88130.0,0.000247]
[1766146938675,0.0025,88140.0,88131.0,0.40408]
[1766146938904,0.0025,88146.0,88132.0,0.01134661]
[1766146939121,0.0025,88144.0,88134.0,0.40408]
[1766146939316,0.00572,88145.0,88134.0,0.40408]
[1766146939533,0.00572,88145.0,88135.0,0.05673114]
[1766146939740,0.00572,88145.0,88137.0,0.01134597]
[1766146939942,0.00572,88145.0,88138.0,0.01134584]
[1766146940169,0.00572,88145.0,88137.0,0.01134597]
[1766146940604,0.00572,88145.0,88136.0,0.06807597]
[1766146940817,0.28138,88156.0,88142.0,0.36006194]
[1766146941027,0.00572,88155.0,88143.0,0.69607]
[1766146941185,0.00572,88154.0,88143.0,0.69607]
[1766146941911,0.28138,88152.0,88137.0,0.01384597]
[1766146942117,0.30974042,88151.0,88137.0,0.01384597]
[1766146942457,0.30974042,88151.0,88138.0,0.01134584]
[1766146942458,0.01809249,88150.0,88138.0,0.01134584]
[1766146942586,0.02753399,88149.0,88137.0,0.40658]
[1766146942820,0.02753399,88149.0,88137.0,0.0025]
[1766146943022,0.02764799,88153.0,88138.0,0.41542584]
[1766146943218,0.02764799,88153.0,88138.0,0.47215504]
[1766146943219,0.01809249,88150.0,88138.0,0.47215504]
[1766146943485,0.18075,88154.0,88137.0,0.01384597]
[1766146943486,0.00572,88154.0,88147.0,0.29199]
[1766146943678,0.17374,88163.0,88145.0,0.01134494]
[1766146943679,0.01809249,88165.0,88153.0,0.01134391]
[1766146943916,0.00572,88160.0,88152.0,0.41542404]
[1766146944317,0.00572,88160.0,88152.0,0.29199]
[1766146944519,0.00572,88160.0,88153.0,0.40408]
[1766146944913,0.28138,88159.0,88149.0,0.0025]
[1766146945198,0.17693,88160.0,88149.0,0.0025]
[1766146945199,0.02835817,88158.0,88149.0,0.0025]
[1766146945372,0.02835785,88159.0,88149.0,0.0025]
[1766146945581,0.30973785,88159.0,88149.0,0.0025]
[1766146945780,0.02835817,88158.0,88149.0,0.0025]
[1766146945958,0.02835817,88158.0,88145.0,0.0025]
[1766146946299,0.02835817,88158.0,88145.0,0.01395413]
[1766146946497,0.02835817,88158.0,88145.0,0.05933387]
[1766146946706,0.02835817,88158.0,88147.0,0.0025]
[1766146947071,0.00572,88157.0,88147.0,0.0025]
[1766146947465,0.00572,88157.0,88145.0,0.06817863]
[1766146947466,0.00572,88157.0,88145.0,0.00010919]
[1766146948693,0.2871,88157.0,88145.0,0.00010919]
[1766146949776,0.00572,88157.0,88147.0,0.40408]
[1766146950401,0.00572,88157.0,88147.0,0.69607]
[1766146950954,0.00572,88157.0,88148.0,0.40408]
[1766146951480,0.00572,88157.0,88148.0,0.69607]
[1766146951812,0.00572,88157.0,88148.0,0.70741455]
[1766146952012,0.00572,88160.0,88152.0,0.69607]
[1766146952253,0.0025,88167.0,88153.0,0.06806293]
[1766146952455,0.01809249,88164.0,88152.0,0.70741404]
[1766146952617,0.01809249,88164.0,88152.0,0.69607]
[1766146952818,0.01809249,88164.0,88152.0,0.40408]
[1766146953019,0.44876,88161.0,88148.0,0.0025]
[1766146953238,0.00572,88160.0,88150.0,0.29199]
[1766146953438,0.00572,88160.0,88151.0,0.69607]
[1766146954421,0.02188749,88167.0,88151.0,0.01134417]
[1766146954613,0.00822,88168.0,88159.0,0.41653]
[1766146955229,0.00822,88168.0,88159.0,0.42787314]
[1766146955476,0.00572,88168.0,88163.0,0.06805512]
[1766146955651,0.00572,88175.0,88164.0,0.41653]
[1766146955849,0.00572,88175.0,88165.0,0.0680542]
[1766146956087,0.00572,88175.0,88165.0,0.01134236]
[1766146956529,0.00572,88175.0,88167.0,0.01134211]
[1766146956770,0.00572,88179.0,88169.0,0.71741]
[1766146956939,0.00572,88179.0,88170.0,0.41653]
[1766146957516,0.01706056,88179.0,88170.0,0.41653]
[1766146957719,0.01809249,88171.0,88160.0,0.01134301]
[1766146957919,0.01809249,88171.0,88160.0,0.00572]
[1766146958259,0.27834,88169.0,88160.0,0.00572]
[1766146958880,0.27834,88169.0,88161.0,0.01134288]
[1766146959076,0.27834,88169.0,88162.0,0.01134275]
[1766146959294,0.27834,88169.0,88160.0,0.00572]
[1766146959752,0.27834,88169.0,88161.0,0.01134288]
[1766146960204,0.27834,88169.0,88161.0,0.06805671]
[1766146960370,0.27834,88169.0,88161.0,0.0680571]
[1766146960574,0.01809249,88171.0,88160.0,0.00572]
[1766146960735,0.0025,88172.0,88163.0,0.4845852]
[1766146960938,0.0025,88172.0,88165.0,0.01134236]
[1766146961309,0.0025,88172.0,88164.0,0.01134249]
[1766146961651,0.03085367,88172.0,88163.0,0.41653]
[1766146962081,0.01809249,88171.0,88160.0,0.00572]
[1766146962291,0.02835431,88170.0,88160.0,0.00572]
[1766146962755,0.27834,88168.0,88158.0,0.00572]
[1766146963012,0.0025,88172.0,88159.0,0.01134314]
[1766146963211,0.0025,88172.0,88161.0,0.41653]
[1766146963372,0.0025,88172.0,88164.0,0.01134249]
[1766146963577,0.03085367,88172.0,88161.0,0.41653]
[1766146963986,0.29643249,88171.0,88159.0,0.01134314]
[1766146964281,0.30669431,88170.0,88158.0,0.07377918]
[1766146964482,0.27834,88170.0,88158.0,0.00572]
[1766146964878,0.15947,88168.0,88158.0,0.00572]
[1766146965100,0.02835528,88167.0,88158.0,0.00572]
[1766146966346,0.0025,88172.0,88159.0,0.06805872]
[1766146966602,0.27834,88171.0,88158.0,0.42225]
[1766146966799,0.02835431,88170.0,88158.0,0.42225]
[1766146967020,0.0025,88172.0,88160.0,0.42787301]
[1766146967225,0.01134031,88181.0,88158.0,0.01706327]
[1766146967226,0.27834,88184.0,88167.0,0.01134211]
[1766146967441,0.00572,88183.0,88170.0,0.41653]
[1766146967603,0.0025,88182.0,88170.0,0.41653]
[1766146968140,0.00572,88183.0,88170.0,0.41653]
[1766146968493,0.0025,88182.0,88170.0,0.41653]
[1766146969453,0.27834,88179.0,88165.0,0.00572]
[1766146969633,0.02827949,88178.0,88165.0,0.00572]
[1766146970016,0.00572,88177.0,88166.0,0.06805291]
[1766146970406,0.00572,88177.0,88167.0,0.06805266]
[1766146970638,0.00572,88177.0,88167.0,0.71741]
[1766146972717,0.00572,88177.0,88167.0,0.72875211]
[1766146973269,0.02419499,88180.0,88170.0,0.01134172]
[1766146973411,0.01809249,88189.0,88179.0,0.30088]
[1766146973618,0.0025,88187.0,88179.0,0.30088]
[1766146973816,0.0025,88187.0,88177.0,0.41653]
[1766146974629,0.00260917,88187.0,88177.0,0.41653]
[1766146976105,0.01133966,88186.0,88172.0,0.30088]
[1766146976314,0.30668949,88185.0,88170.0,0.42225]
[1766146976522,0.05930748,88187.0,88153.0,0.06125656]
[1766146976523,0.15519,88169.0,88153.0,0.06125656]
[1766146976743,0.00572,88170.0,88158.0,0.06805937]
[1766146976959,0.00572,88170.0,88158.0,0.01134327]
[1766146977173,0.00572,88170.0,88159.0,0.41653]
[1766146977376,0.00572,88170.0,88161.0,0.41653]
[1766146978669,0.00572,88170.0,88162.0,0.01134275]
[1766146978871,0.23812554,88189.0,88162.0,0.01134275]
[1766146978872,0.00572,88173.0,88165.0,0.41653]
[1766146979073,0.00572,88172.0,88166.0,0.41653]
[1766146981610,0.00572,88178.0,88166.0,0.41653]
[1766146981816,0.00572,88178.0,88166.0,0.71741]
[1766146982224,0.01706069,88178.0,88166.0,0.71741]
[1766146982829,0.00572,88178.0,88166.0,0.71741]
[1766146983646,0.01134082,88177.0,88166.0,0.71741]
[1766146983845,0.28968108,88175.0,88163.0,0.0025]
[1766146984050,0.02835302,88174.0,88164.0,0.4177]
[1766146984283,0.03969423,88174.0,88164.0,0.4177]
[1766146984497,0.03969423,88174.0,88157.0,0.06125656]
[1766146984498,0.27022,88167.0,88160.0,0.00572]
[1766146984629,0.28156211,88167.0,88160.0,0.00572]
[1766146984827,0.27022,88167.0,88160.0,0.00572]
[1766146985031,0.33827275,88167.0,88160.0,0.00572]
[1766146985258,0.01134224,88166.0,88160.0,0.00572]
[1766146985434,0.33827275,88167.0,88160.0,0.00572]
[1766146985636,0.27022,88167.0,88160.0,0.00572]
[1766146985859,0.2217524,88168.0,88160.0,0.00572]
[1766146985860,0.1537,88168.0,88160.0,0.00572]
[1766146986055,0.02835528,88167.0,88160.0,0.00572]
[1766146986253,0.02835528,88167.0,88157.0,0.0025]
[1766146986459,0.02835528,88167.0,88155.0,0.0025]
[1766146986925,0.02835528,88167.0,88153.0,0.4177]
[1766146987131,0.01134224,88166.0,88153.0,0.4177]
[1766146987299,0.28156224,88166.0,88154.0,0.0025]
[1766146988185,0.27022,88166.0,88154.0,0.0025]
[1766146989814,0.01134185,88169.0,88152.0,0.0025]
[1766146989815,0.27022,88164.0,88152.0,0.0025]
[1766146990009,0.27022,88162.0,88152.0,0.0025]
[1766146992132,0.27022,88162.0,88151.0,0.00572]
[1766146992133,0.27022,88161.0,88151.0,0.00572]
[1766146992407,0.27022,88158.0,88151.0,0.00572]
[1766146993074,0.27022,88158.0,88144.0,0.36149163]
[1766146993075,0.27022,88156.0,88148.0,0.00572]
[1766146993277,0.03970188,88157.0,88137.0,0.01134597]
[1766146993278,0.27022,88151.0,88137.0,0.06125656]
[1766146993448,0.02381249,88157.0,88150.0,0.28889]
[1766146993449,0.00572,88157.0,88150.0,0.28889]
[1766146993649,0.00572,88157.0,88150.0,0.70659]
[1766146993995,0.00572,88157.0,88146.0,0.01706481]
[1766146993996,0.27594,88157.0,88146.0,0.00572]
[1766146994529,0.02038891,88156.0,88146.0,0.00572]
[1766146994736,0.27022,88152.0,88135.0,0.28889]
[1766146994929,0.29858042,88151.0,88137.0,0.01145516]
[1766146995259,0.02836074,88150.0,88137.0,0.71804516]
[1766146995452,0.02836074,88150.0,88137.0,0.70669919]
[1766146995897,2.13694692,88150.0,88137.0,0.41780919]
[1766146996058,0.02836107,88149.0,88137.0,0.41780919]
[1766146996659,0.27022,88148.0,88137.0,0.00582919]
[1766146996864,0.02836171,88147.0,88137.0,0.00582919]
[1766146997460,0.02836139,88148.0,88137.0,0.00582919]
[1766146998668,0.02836139,88148.0,88137.0,0.01717516]
[1766146998873,0.00572,88151.0,88142.0,0.01134532]
[1766146999495,0.00572,88151.0,88140.0,0.38226]
[1766147000795,0.32369042,88151.0,88137.0,0.00582919]
[1766147001032,0.29533,88151.0,88137.0,0.00582919]
[1766147001178,0.02836074,88150.0,88137.0,0.00582919]
[1766147001359,0.31778391,88150.0,88137.0,0.00582919]
[1766147001568,0.01134442,88149.0,88137.0,0.00582919]
[1766147002173,0.05672267,88149.0,88137.0,0.00582919]
[1766147002371,0.06806899,88146.0,88137.0,0.00582919]
[1766147002577,0.06806818,88147.0,88137.0,0.00582919]
[1766147002758,0.01134468,88147.0,88137.0,0.00582919]
[1766147003807,0.28961,88146.0,88137.0,0.00582919]
[1766147004014,0.41887,88141.0,88131.0,0.0025]
[1766147004258,0.41887,88141.0,88122.0,0.38226]
[1766147004259,0.12901,88130.0,88112.0,0.28032]
[1766147004475,0.28961,88127.0,88113.0,0.00572]
[1766147004730,0.28961,88127.0,88114.0,0.0025]
[1766147004956,0.28961,88127.0,88117.0,0.0025]
[1766147005175,0.00572,88133.0,88119.0,0.0025]
[1766147005398,0.00572,88133.0,88121.0,0.0025]
[1766147005620,0.00572,88133.0,88123.0,0.0025]
[1766147006188,0.28961,88132.0,88123.0,0.0025]
[1766147006393,0.28961,88132.0,88120.0,0.00572]
[1766147006394,0.41701,88130.0,88120.0,0.00572]
[1766147008003,0.28961,88129.0,88120.0,0.00572]
[1766147009851,0.12582,88131.0,88120.0,0.00572]
[1766147009852,0.00572,88133.0,88120.0,0.00572]
[1766147010222,0.00572,88133.0,88120.0,0.00596766]
[1766147010604,0.00572,88133.0,88121.0,0.38226]
[1766147010821,0.00572,88133.0,88121.0,0.66258]
[1766147011729,0.29533,88133.0,88121.0,0.38226]
[1766147013235,0.02836654,88132.0,88121.0,0.38226]
[1766147013648,0.29533,88133.0,88121.0,0.38226]
[1766147013851,0.00572,88133.0,88123.0,0.38226]
[1766147015060,0.00572,88138.0,88126.0,0.01134738]
[1766147015416,0.01134404,88152.0,88120.0,1.84433384]
[1766147015417,0.34349166,88156.0,88137.0,0.67319]
[1766147015528,0.00572,88149.0,88137.0,0.67319]
[1766147015728,0.00572,88149.0,88138.0,0.28573005]
[1766147015929,0.00572,88149.0,88138.0,0.28507]
[1766147016128,0.00572,88149.0,88137.0,0.38812]
[1766147016551,0.00572,88149.0,88140.0,0.28507]
[1766147016754,0.00572,88149.0,88140.0,0.67319]
[1766147016966,0.00572,88149.0,88140.0,0.28507]
[1766147017410,0.00572,88149.0,88140.0,0.67319]
[1766147017718,0.0025,88151.0,88143.0,0.67319]
[1766147017915,0.00260913,88151.0,88143.0,0.67319]
[1766147018954,0.00260913,88151.0,88144.0,0.01134507]
[1766147019326,0.03407753,88160.0,88152.0,0.38812]
[1766147019531,0.28677224,88166.0,88145.0,0.00572]
[1766147019532,0.001099,88152.0,88145.0,0.00572]
[1766147019772,0.001099,88152.0,88146.0,0.38812]
[1766147020004,0.001099,88152.0,88146.0,0.67319]
[1766147020208,0.00572,88158.0,88147.0,0.38812]
[1766147021834,0.001099,88147.0,88145.0,0.00572]
[1766147022260,0.02835881,88156.0,88145.0,0.00572]
[1766147022458,0.30378881,88156.0,88145.0,0.00572]
[1766147022663,0.28677352,88156.0,88145.0,0.00572]
[1766147023077,0.27543,88156.0,88145.0,0.00572]
[1766147023733,0.02835914,88155.0,88145.0,0.00572]
[1766147026230,0.27543,88154.0,88145.0,0.00572]
[1766147026439,0.06806402,88153.0,88145.0,0.004621]
[1766147026643,0.28677404,88152.0,88145.0,0.004621]
[1766147026794,0.01134417,88151.0,88139.0,0.38812]
[1766147027000,0.09647518,88151.0,88139.0,0.38812]
[1766147027199,0.27543,88150.0,88139.0,0.38812]
[1766147028065,0.28677429,88150.0,88139.0,0.38812]
[1766147028268,0.01134442,88149.0,88139.0,0.38812]
[1766147028686,0.3434958,88150.0,88139.0,0.38812]
[1766147028888,0.27543,88150.0,88139.0,0.38812]
[1766147029275,0.27543,88150.0,88139.0,0.0025]
[1766147029276,0.27543,88147.0,88139.0,0.0025]
[1766147029716,0.11079,88148.0,88139.0,0.0025]
[1766147029894,0.02836171,88147.0,88139.0,0.0025]
[1766147032780,4.952e-05,88151.0,88139.0,0.39062]
[1766147032961,4.952e-05,88151.0,88144.0,0.38812]
[1766147033160,0.0025,88159.0,88147.0,0.67319]
[1766147033358,0.0025,88159.0,88147.0,0.65323]
[1766147034043,0.0025,88159.0,88143.0,0.28507]
[1766147034247,0.00572,88162.0,88153.0,0.28507]
[1766147034455,0.16652146,88172.0,88150.0,0.01134429]
[1766147034456,0.00572,88164.0,88154.0,0.30775756]
[1766147034592,0.00572,88164.0,88154.0,0.28507]
[1766147035383,0.00572,88164.0,88152.0,0.0025]
[1766147035784,0.01134288,88161.0,88152.0,0.0025]
[1766147035987,0.01056059,88163.0,88145.0,0.00572]
[1766147035988,0.05671397,88162.0,88145.0,0.00572]
[1766147036202,0.01134314,88159.0,88145.0,0.00572]
[1766147036402,0.01134339,88157.0,88145.0,0.00572]
[1766147036604,0.27543,88158.0,88145.0,0.00572]
[1766147037147,0.42659,88158.0,88145.0,0.00572]
[1766147037357,0.01134327,88158.0,88145.0,0.00572]
[1766147037556,0.27543,88158.0,88145.0,0.00572]
[1766147037758,0.15066,88158.0,88145.0,0.00572]
[1766147037953,0.16200327,88158.0,88146.0,0.0025]
[1766147038224,0.42609,88158.0,88146.0,0.0025]
[1766147038648,0.27543,88154.0,88145.0,0.00572]
[1766147038825,0.42609,88154.0,88143.0,0.00010913]
[1766147038992,0.28599059,88153.0,88143.0,0.00010913]
[1766147039197,0.27543,88153.0,88143.0,0.00010913]
[1766147039807,0.15066,88154.0,88143.0,0.00010913]
[1766147041010,0.27543,88148.0,88131.0,0.38812]
[1766147041175,0.14911,88147.0,88132.0,0.05923299]
[1766147041388,0.42454,88147.0,88132.0,0.0025]
[1766147041586,0.42454,88147.0,88132.0,0.28757]
[1766147041763,0.42454,88147.0,88134.0,0.0025]
[1766147042883,0.42454,88147.0,88134.0,0.39062]
[1766147043080,0.42454,88147.0,88134.0,0.40196635]
[1766147043435,0.00572,88151.0,88131.0,0.06112332]
[1766147043559,0.0025,88148.0,88131.0,0.67319]
[1766147043760,0.0025,88148.0,88135.0,0.38812]
[1766147043958,0.0025,88148.0,88135.0,0.64678]
[1766147044188,0.0025,88148.0,88136.0,0.63366]
[1766147044564,0.0025,88148.0,88137.0,0.375]
[1766147044743,0.00822,88148.0,88137.0,0.375]
[1766147045163,0.29294059,88147.0,88135.0,0.00572]
[1766147045362,0.28238,88147.0,88135.0,0.00572]
[1766147046770,0.2881,88147.0,88135.0,0.00572]
[1766147046971,0.14344,88146.0,88135.0,0.00572]
[1766147047623,0.00572,88147.0,88135.0,0.38072]
[1766147049001,0.00572,88147.0,88136.0,0.3863461]
[1766147049231,0.05671854,88155.0,88136.0,0.3863461]
[1766147049232,0.00572,88151.0,88147.0,0.634759]
[1766147049540,0.00572,88151.0,88147.0,0.375]
[1766147049787,0.00572,88151.0,88142.0,0.25866]
[1766147049974,0.00572,88151.0,88141.0,0.01134545]
[1766147050166,0.00572,88151.0,88140.0,0.375]
[1766147050373,0.00572,88151.0,88133.0,0.01384648]
[1766147050374,0.28238,88150.0,88136.0,0.0025]
[1766147050576,0.28238,88149.0,88136.0,0.0025]
[1766147050870,0.28238,88147.0,88136.0,0.0025]
[1766147051452,0.14046,88147.0,88136.0,0.0025]
[1766147051654,0.35044896,88146.0,88133.0,0.375]
[1766147051905,0.13973,88144.0,88128.0,0.06112332]
[1766147052053,0.13151,88142.0,88128.0,0.06112332]
[1766147052240,0.13151,88142.0,88127.0,0.00572]
[1766147052241,0.29372545,88141.0,88127.0,0.00572]
[1766147052445,0.28238,88140.0,88127.0,0.00572]
[1766147053300,0.1308,88140.0,88127.0,0.00572]
[1766147053497,0.28238,88139.0,88127.0,0.00572]
[1766147053844,0.28238,88139.0,88128.0,0.0025]
[1766147054260,0.28238,88139.0,88127.0,0.00572]
[1766147054464,0.28238,88138.0,88127.0,0.00572]
[1766147054663,0.05673003,88137.0,88127.0,0.00572]
[1766147054849,0.4118,88126.0,88120.0,0.00024766]
[1766147055058,0.12942,88134.0,88120.0,0.00024766]
[1766147055280,0.28238,88132.0,88120.0,0.00024766]
[1766147055599,0.28238,88127.0,88120.0,0.00024766]
[1766147056306,0.12739,88126.0,88115.0,0.0025]
[1766147056508,0.12739,88124.0,88111.0,0.00572]
[1766147056708,0.28238,88123.0,88111.0,0.00572]
[1766147056980,0.28238,88122.0,88111.0,0.00572]
[1766147057201,0.28238,88122.0,88112.0,0.0025]
[1766147058946,0.26599,88126.0,88112.0,0.39697919]
[1766147059205,0.27655059,88125.0,88112.0,0.38563]
[1766147059343,0.26599,88124.0,88112.0,0.38563]
[1766147061269,0.26599,88124.0,88094.0,0.0002]
[1766147061270,0.001099,88112.0,88100.0,0.01135073]
[1766147061471,0.001099,88112.0,88101.0,0.63689]
[1766147061675,0.01706841,88118.0,88101.0,0.38313]
[1766147061853,0.07381056,88118.0,88101.0,0.63689]
[1766147062011,0.46243056,88118.0,88101.0,0.63689]
[1766147062213,0.40568841,88118.0,88101.0,0.63689]
[1766147062438,0.39434,88118.0,88101.0,0.63689]
[1766147062637,0.13969841,88118.0,88101.0,0.63689]
[1766147062841,0.45671133,88117.0,88101.0,0.63689]
[1766147063074,0.01134919,88112.0,88101.0,0.63689]
[1766147063394,1.85011241,88111.0,88101.0,0.38313]
[1766147063526,0.01134893,88114.0,88101.0,0.38313]
[1766147063728,0.388,88115.0,88101.0,0.38313]
[1766147065051,0.01134893,88114.0,88101.0,0.38313]
[1766147065774,0.01056059,88113.0,88101.0,0.38313]
[1766147066116,0.01056059,88114.0,88101.0,0.38313]
[1766147066894,0.39615059,88114.0,88111.0,0.00027866]
[1766147067074,0.39615059,88114.0,88101.0,0.38313]
[1766147067075,0.38559,88114.0,88101.0,0.38313]
[1766147067693,0.13094893,88114.0,88101.0,0.38313]
[1766147068034,0.26599,88113.0,88101.0,0.38313]
[1766147068196,0.385,88110.0,88100.0,0.00036424]
[1766147069311,0.39634944,88110.0,88100.0,0.00036424]
[1766147069517,0.11901,88110.0,88100.0,0.00036424]
[1766147070359,0.00563576,88100.0,88099.0,0.00572]
[1766147070666,0.26599,88123.0,88104.0,0.01135022]
[1766147070869,0.0025,88122.0,88109.0,0.01134957]
[1766147071008,0.01135138,88134.0,88114.0,0.70498307]
[1766147071009,0.00572,88126.0,88114.0,0.70498307]
[1766147071196,0.00572,88127.0,88116.0,0.63689]
[1766147073263,0.00572,88127.0,88118.0,0.64823841]
[1766147073423,0.00572,88127.0,88119.0,0.02269658]
[1766147073623,0.26599,88133.0,88119.0,0.03404487]
[1766147073624,0.00572,88128.0,88119.0,0.03404487]
[1766147073841,0.00572,88128.0,88119.0,0.67093487]
[1766147074013,0.00572,88128.0,88120.0,0.02269632]
[1766147074218,0.0025,88132.0,88116.0,0.23832211]
[1766147074219,0.00572,88132.0,88122.0,0.6253]
[1766147074498,0.00572,88132.0,88121.0,0.06808813]
[1766147074499,0.00572,88132.0,88123.0,0.6253]
[1766147075103,0.00572,88132.0,88126.0,0.35686]
[1766147075517,0.00572,88138.0,88129.0,0.6253]
[1766147075654,0.00572,88138.0,88130.0,0.02269374]
[1766147076286,0.00608394,88138.0,88130.0,0.02269374]
[1766147076736,0.00608394,88138.0,88129.0,0.35686]
[1766147077060,0.01809249,88137.0,88129.0,0.35686]
[1766147077233,0.001099,88129.0,88124.0,0.0025]
[1766147077672,0.39712,88135.0,88124.0,0.0025]
[1766147077912,0.27784,88131.0,88120.0,0.02269632]
[1766147078034,0.39089,88129.0,88121.0,0.00572]
[1766147078233,0.11305,88129.0,88118.0,0.00572]
[1766147078944,1.83955182,88131.0,88118.0,0.00572]
[1766147079514,0.00572,88132.0,88121.0,0.27978803]
[1766147079704,0.00572,88132.0,88121.0,0.6253]
[1766147079904,0.00572,88132.0,88121.0,0.35686]
[1766147081191,0.39997059,88131.0,88118.0,0.00572]
[1766147081399,1.83955182,88130.0,88118.0,0.00572]
[1766147082632,0.00572,88132.0,88118.0,0.00572]
[1766147083146,0.00572,88132.0,88118.0,0.01706841]
[1766147083698,0.00572,88132.0,88118.0,0.00572]
[1766147083836,0.00572,88132.0,88118.0,0.01706841]
[1766147084443,0.00572,88132.0,88118.0,0.64236841]
[1766147084710,0.00572,88132.0,88120.0,0.01134816]
[1766147085005,0.00572,88132.0,88118.0,0.63102]
[1766147085601,1.83955182,88130.0,88118.0,0.63102]
[1766147085805,0.01056059,88129.0,88118.0,0.63102]
[1766147086008,0.01056059,88129.0,88118.0,0.36258]
[1766147087213,1.83955182,88130.0,88118.0,0.36258]
[1766147088243,1.83955182,88130.0,88118.0,0.37392841]
[1766147088444,1.83955182,88130.0,88118.0,0.36258]
[1766147088664,1.83955182,88130.0,88119.0,0.01134829]
[1766147088997,1.83955182,88130.0,88118.0,0.63102]
[1766147089147,1.83955182,88130.0,88119.0,0.05674145]
[1766147089510,0.39324,88132.0,88120.0,0.01134816]
[1766147089644,0.39324,88132.0,88121.0,0.01134803]
[1766147089850,0.1154,88132.0,88121.0,0.01134803]
[1766147090232,0.00572,88132.0,88126.0,0.6253]
[1766147090568,0.00572,88132.0,88127.0,0.02269452]
[1766147091781,0.001099,88127.0,88120.0,0.41360075]
[1766147091981,0.001099,88127.0,88120.0,0.36820816]
[1766147092161,0.00572,88132.0,88120.0,0.36820816]
[1766147092368,0.00572,88132.0,88120.0,0.35686]
[1766147093668,2.22929182,88130.0,88118.0,0.00572]
[1766147093874,0.27784,88128.0,88118.0,0.00572]
[1766147094654,0.1119,88129.0,88118.0,0.00572]
[1766147094907,0.01056059,88128.0,88118.0,0.00572]
[1766147096860,0.38811,88128.0,88118.0,0.00572]
[1766147097060,0.39867059,88127.0,88118.0,0.00572]
[1766147097265,1.85089869,88130.0,88119.0,0.35686]
[1766147097466,0.01056059,88129.0,88118.0,0.00572]
[1766147098595,0.38772,88128.0,88118.0,0.00572]
[1766147098801,0.01056059,88127.0,88118.0,0.00572]
[1766147099211,0.38772,88128.0,88118.0,0.00572]
[1766147099837,0.38772,88128.0,88119.0,0.0025]
[1766147100015,0.10988,88128.0,88119.0,0.0025]
[1766147100624,0.01056059,88129.0,88119.0,0.01384829]
[1766147100826,0.28356,88132.0,88119.0,0.69588957]
[1766147101025,0.28356,88132.0,88120.0,0.01134816]
[1766147101420,0.00572,88132.0,88120.0,0.63460816]
[1766147101620,0.00572,88132.0,88120.0,0.62326]
[1766147103304,0.00572,88132.0,88121.0,0.03404409]
[1766147103460,0.00572,88132.0,88123.0,0.6253]
[1766147103660,0.00572,88132.0,88124.0,0.02269529]
[1766147103987,0.00572,88132.0,88123.0,0.35686]
[1766147104390,0.00572,88132.0,88119.0,0.27666]
[1766147104583,0.001099,88123.0,88119.0,0.00822]
[1766147104903,0.11986059,88128.0,88119.0,0.00822]
[1766147105112,0.13120772,88128.0,88119.0,0.00822]
[1766147105246,0.11986059,88128.0,88119.0,0.00822]
[1766147105816,0.18794385,88128.0,88119.0,0.00822]
[1766147106024,0.11986059,88128.0,88119.0,0.00822]
[1766147107411,0.13120772,88128.0,88119.0,0.00822]
[1766147107849,0.01134738,88126.0,88119.0,0.00822]
[1766147108458,0.1093,88128.0,88119.0,0.00822]
[1766147109063,0.39299726,88127.0,88119.0,0.00822]
[1766147109287,0.01134738,88126.0,88119.0,0.00822]
[1766147109426,0.38165,88126.0,88119.0,0.00822]
[1766147109869,0.39299738,88126.0,88119.0,0.00822]
[1766147110074,0.38165,88126.0,88119.0,0.00822]
[1766147110976,0.10756,88126.0,88119.0,0.00822]
[1766147111275,1.83955182,88130.0,88120.0,0.63756]
[1766147111579,1.83955182,88130.0,88121.0,0.27121]
[1766147112345,0.00572,88132.0,88123.0,0.27121]
[1766147112525,0.00572,88132.0,88123.0,0.63756]
[1766147113219,0.00572,88132.0,88115.0,0.06116528]
[1766147113424,0.38032,88122.0,88113.0,0.0025]
[1766147113784,0.44840758,88122.0,88113.0,0.0025]
[1766147113988,0.38032,88122.0,88113.0,0.0025]
[1766147114186,0.01134803,88121.0,88113.0,0.0025]
[1766147114399,0.3916679,88122.0,88113.0,0.0025]
[1766147114588,0.01134829,88119.0,88110.0,0.64006]
[1766147114788,0.01134829,88119.0,88110.0,0.36885]
[1766147115011,0.01134829,88119.0,88112.0,0.0025]